{"text_format":"1","workbook":"xlsx","n_sheets":2,"sheets":["Pasiūlymas","Subtiekėjai ir priedai"],"not_rendered":{"charts":0,"images":0,"macros":1,"external_links":0,"defined_names":0,"comments":0,"pivot_tables":0},"unopened":[],"bounds":{"document_bytes":16777216,"sheet_cells":100000,"rows_first":2000,"rows_last":500,"rows_between":2000,"halvings":0,"cell_chars":16384,"cell_head_chars":4096},"cells_cut":0,"cells_raw":0,"read":"whole","date_system":"1900"}

{"sheet":"Pasiūlymas","index":0,"n_rows":335,"n_cols":8,"rows_kept":335,"cut":false,"hidden":false,"merged":[[25,0,25,5],[26,0,26,5],[27,0,27,5],[28,0,28,5],[20,0,20,1],[20,2,20,5],[22,0,22,5],[23,0,23,5],[24,0,24,5],[17,0,17,1],[17,2,17,5],[18,0,18,1],[18,2,18,5],[19,0,19,1],[19,2,19,5],[14,0,14,1],[14,2,14,5],[15,0,15,1],[15,2,15,5],[16,0,16,1],[16,2,16,5],[11,0,11,1],[11,2,11,5],[12,0,12,1],[12,2,12,5],[13,0,13,1],[13,2,13,5]]}
[]
["PIRKIMO SĄLYGŲ PRIEDAS \"PASIŪLYMŲ FORMA\""]
[]
["DEZINFEKCINĖS MEDŽIAGOS"]
[]
["Kam:","LSMU Kauno ligoninė"]
[]
["Data:","2021-02-26"]
["Nr.:",526314]
["Vieta:","Kaunas"]
[]
["Tiekėjo pavadinimas / Ūkio subjektų grupės nariai:",null,"L.R.Tamulio firma „Meditalika“"]
["Tiekėjo kodas (-ai):",null,134565744]
["Tiekėjo adresas (-ai):",null,"Radvilų Dvaro g.4, LT-48320 Kaunas"]
["Tiekėjo PVM mokėtojo kodas(-ai):",null,"LT345657415"]
["Tiekėjo / Ūkio subjektų grupės atsakingo partnerio sąskaitos numeris, banko pavadinimas ir banko kodas (-ai):",null,"LT097044060002905474, AB SEB Bankas, banko kodas 70440"]
["Asmens atsakingo už pasiūlymą vardas, pavardė:",null,"Rita Rutkevičienė"]
["Asmens atsakingo už pasiūlymą telefono numeris, el. pašto adresas:",null,"+370 37 22 22 23/ +370 610 17000"]
["Tiekėjo / Ūkio subjektų grupės, laimėjimo atveju, pasirašančio sutartį asmens vardas, pavardė, pareigos:",null,"Komercijos direktorė Rita Rutkevičienė"]
["Tiekėjo / Ūkio subjektų grupės, laimėjimo atvjeu, už sutarties vykdymą atsakingo asmens vardas, pavardė, telefono numeris, elektroninio pašto adresas:",null,"Administratorė Rasa Andronavičienė, tel., nr. +370 37 22 22 23/ 32 45 01, el.p. info@meditalika.lt "]
["(1) Tiekėjo / Ūkio subjektų grupės narių, (2) ūkio subjektų, kurių pajėgumais remiamasi, ir (3) jei pašalinimo pagrindai taikomi visiems subtiekėjams - subtiekėjų, kolegialaus priežiūros organo (Stebėtojų tarybos) ir (ar) kolegialaus valdymo organo (Valdybos) narių sąrašas (jei sudaryta) ir (ar) asmuo, kuriam suteikti VPĮ 46 str. 2 d. 2 p. numatyti įgaliojimai",null,"-"]
[]
["Tiekėjo patvirtinimai:"]
["1. Šiuo pasiūlymu pažymime, kad sutinkame su visomi pirkimo sąlygomis, nustatytomis:"]
["1.1. viešojo pirkimo dokumentuose"]
["1.2. kituose pirkimo dokumentuose (jų paaiškinimuose, papildymuose)."]
["2. Patvirtiname, kad informacija ir duomenys, pateikti pasiūlyme, yra teisingi ir apima viską, ko reikia tinkamam sutarties įvykdymui"]
["3. Patvirtiname, kad jei pasiūlyme nenurodyti kolegialaus priežiūros/valdymo organų nariai, šie organai juridiniuose asmenyse nėra sudaryti (taikoma, kai pirkimo dokumentuose nustatyti pašalinimo pagrindai)."]
["4. Pasiūlymas galioja iki termino, nustatyto pirkimo dokumentuose."]
[]
[]
[]
[]
[]
["16. DALIS","PRIEMONĖS ENDOSKOPŲ VALYMUI IR DEZINFEKCIJAI RANKINIU BŪDU"]
[]
["Tiekėjo pasiūlymas:"]
["Nr.","Pavadinimas","Mato vienetas","Kiekis","Vieneto įkainis be PVM, Eur","Suma be PVM, Eur","Siūlomos prekės modelis, pavadinimas, gamintojas","Tiekėjo siūlomi parametrai ir parametrą pagrindžiančio dokumento puslapis"]
["16.","Priemonės endoskopų valymui ir dezinfekcijai rankiniu būdu"]
["16.1.","Priemonė lanksčių endoskopų “Olympus”, “Pentax”, “Karl Storz” aukšto lygio dezinfekcijai","kg",100,13.3,{"$f":"IF(ISBLANK(E40),\"\", PRODUCT(D40,E40))","v":1330},"Innosept POWDER 1,5kg.,  Prisman GmbH, Vokietija"]
["16.1.1.","Veiklioji medžiaga – perkarbonatas.",null,null,null,null,null,"Veiklioji medžiaga – perkarbonatas."]
["16.1.2.","Naikina bakterijas (įskaitant TBC mikobakterijas), koncentracija - ≤1%, ekspozicija - ≤5 min.",null,null,null,null,null,"Naikina bakterijas (įskaitant TBC mikobakterijas), koncentracija - ≤1%, ekspozicija - ≤5 min."]
["16.1.3.","Inaktyvuoja virusus (HBV, HIV, lipofilinius virusus), grybelius.",null,null,null,null,null,"Inaktyvuoja virusus (HBV, HIV, lipofilinius virusus), grybelius."]
["16.1.4.","Naikina virusus,  ekspozicija - ≤ 10 min.",null,null,null,null,null,"Naikina virusus,  ekspozicija - ≤ 10 min."]
["16.1.5.","Forma – milteliai/granulės.",null,null,null,null,null,"Forma – milteliai/granulės."]
["16.1.6.","Pakuotė iki 6 kg, komplekte su dozavimo šaukšteliu",null,null,null,null,null,"Pakuotė 1,5kg, komplekte su dozavimo šaukšteliu. Psl.Nr. 56-66; 117-121"]
["16.1.7.","Pateikti priemonės aprašymą (katalogą) originalo kalba, priemonės naudojimo instrukciją (lietuvių k.), atitinkamai priemonės biocido autorizacijos liudijimą ir/ar atitikties medicinos prietaisų direktyvai 93/42 EEB deklaracijas (originalo k. ir vertimą į lietuvių k.), saugos duomenų lapus (lietuvių k.)."]
["16.2.","Valomasis koncentratas daugkartinio naudojimo medicininiams instrumentams (endoskopų “Olympus”, “Pentax”, “Karl Storz” valymui).","L",400,8,{"$f":"IF(ISBLANK(E48),\"\", PRODUCT(D48,E48))","v":3200},"Instru Zym (2 ltr),                                        Laboratorium Dr.Deppe, Vokietija"]
["16.2.1.","Medicinos instrumentų ikisterilizacinio plovimo priemonė (koncentratas) gamintojo komplektuojamas su aukšto lygio dezinfekcijos priemone enzimų pagrindu.",null,null,null,null,null,"Medicinos instrumentų ikisterilizacinio plovimo priemonė (koncentratas) gamintojo komplektuojamas su aukšto lygio dezinfekcijos priemone enzimų pagrindu."]
["16.2.2.","Mažos koncentracijos nuo 0,5 iki 2,0%",null,null,null,null,null,"Mažos koncentracijos nuo 0,5 iki 2,0%"]
["16.2.3.","Ekspozicijos laikas (5–15 min.)",null,null,null,null,null,"Ekspozicijos laikas (5–15 min.)"]
["16.2.4.","Neputojanti",null,null,null,null,null,"Neputojanti"]
["16.2.5.","Suderinama su aukšto lygio dezinfektantu perkarbonato pagrindu",null,null,null,null,null,"Suderinama su aukšto lygio dezinfektantu perkarbonato pagrindu"]
["16.2.6.","Darbinio tirpalo pH neutralus",null,null,null,null,null,"Darbinio tirpalo pH neutralus"]
["16.2.7.","Pakuotė iki 2 litrų.",null,null,null,null,null,"Pakuotė 2 litrai. Psl.Nr. 24-27; 122-130"]
["16.2.8.","Pateikti priemonės aprašymą (katalogą) originalo kalba, priemonės naudojimo instrukciją (lietuvių k.), atitinkamai priemonės biocido autorizacijos liudijimą ir/ar atitikties medicinos prietaisų direktyvai 93/42 EEB deklaracijas (originalo k. ir vertimą į lietuvių k.), saugos duomenų lapus (lietuvių k.)."]
["16.3.","Testinės juostelės","vnt.",400,1,{"$f":"IF(ISBLANK(E57),\"\", PRODUCT(D57,E57))","v":400},"Quantofix indikatorius, 1 vnt.,  Prisman GmbH, Vokietija"]
["16.3.1.","Skirtos aukšto lygio dezinfektanto tirpalo veiksmingumui nustatyti.",null,null,null,null,null,"Skirtos aukšto lygio dezinfektanto tirpalo veiksmingumui nustatyti."]
["16.3.2.","Pakuotėje ne mažiau nei 50 vnt.",null,null,null,null,null,"Pakuotėje 50 vnt., Psl.Nr. 131"]
[null,null,null,null,"Suma be PVM",{"$f":"IF((COUNT(D40:D59)<>COUNT(F40:F59)),\"\", SUM(F40:F59))","v":4930},{"$f":"IF((COUNT(D40:D59)<>COUNT(F40:F59)),\"Neužpildytos visų objektų kainos\", \"\")","v":""}]
[null,null,null,null,"PVM suma",310.5]
[null,null,null,null,"Suma su PVM",{"$f":"IF(ISBLANK(F61), \"\", SUM(F60:F61))","v":5240.5},"Dalies biudžetas su PVM: 9619,5 Eur"]
[]
[]
[]
[]
[]
["19. DALIS","PRIEMONĖS MEDICINOS PRIETAISŲ PIRMINIAM VALYMUI IR DEZINFEKCIJAI"]
[]
["Tiekėjo pasiūlymas:"]
["Nr.","Pavadinimas","Mato vienetas","Kiekis","Vieneto įkainis be PVM, Eur","Suma be PVM, Eur","Siūlomos prekės modelis, pavadinimas, gamintojas","Tiekėjo siūlomi parametrai ir parametrą pagrindžiančio dokumento puslapis"]
["19.","Priemonės medicinos prietaisų pirminiam valymui ir dezinfekcijai"]
["19.1.","Priemonės medicinos prietaisų pirminiam valymui ir dezinfekcijai","L",350,7,{"$f":"IF(ISBLANK(E73),\"\", PRODUCT(D73,E73))","v":2450},"Endo Star  Neu (2 l),                                        Laboratorium Dr.Deppe, Vokietija"]
["19.1.1.","Produktas skirtas lanksčių ir nelanksčių endoskopų, anesteziologinių priedų, kvėpavimo kaukių, chirurginių instrumentų ir t.t. pirminiam valymui bei dezinfekcijai.",null,null,null,null,null,"Produktas skirtas lanksčių ir nelanksčių endoskopų, anesteziologinių priedų, kvėpavimo kaukių, chirurginių instrumentų ir t.t. pirminiam valymui bei dezinfekcijai."]
["19.1.2.","Veikliosios medžiagos: ketvirtiniai amonio junginiai, alkoholiai.",null,null,null,null,null,"Veikliosios medžiagos: ketvirtiniai amonio junginiai, alkoholiai."]
["19.1.3.","Pasižyminti baktericidiniu, tuberkuliocidiniu, fungicidiniu, virucidiniu aktyvumu, veikia HBV, HCV, ŽIV,  Adeno virusus per 15 min.",null,null,null,null,null,"Pasižyminti baktericidiniu, tuberkuliocidiniu, fungicidiniu, virucidiniu aktyvumu, veikia HBV, HCV, ŽIV,  Adeno virusus per 15 min."]
["19.1.4.","Koncentrato pH  apie 9,9,  1% - 5% , darbinių tirpalų pH apie 8,8-9%.",null,null,null,null,null,"Koncentrato pH  apie 9,9,  1% - 5% , darbinių tirpalų pH apie 8,8-9%."]
["19.1.5.","Preparato sudėtyje nėra aldehidų, chloro, aktyvaus deguonies pagrindu veikiančių medžiagų.",null,null,null,null,null,"Preparato sudėtyje nėra aldehidų, chloro, aktyvaus deguonies pagrindu veikiančių medžiagų."]
["19.1.6.","Preparatas vienu metu valo ir dezinfekuoja instrumentus, turi antikorozinių savybių.",null,null,null,null,null,"Preparatas vienu metu valo ir dezinfekuoja instrumentus, turi antikorozinių savybių."]
["19.1.7.","Nereikalingas aktyvatorius.",null,null,null,null,null,"Nereikalingas aktyvatorius."]
["19.1.8.","Tinka naudojimui ultragarsinėse vonelėse.",null,null,null,null,null,"Tinka naudojimui ultragarsinėse vonelėse."]
["19.1.9.","Pageidautina pakuotė: nuo 1 iki  2 l ir 5 l.",null,null,null,null,null,"Pakuotės: 2 l ir 5 l."]
["19.1.10.","Medicinos prietaisas, ženklintas CE (pagal medicinos prietaisų direktyvą).",null,null,null,null,null,"Medicinos prietaisas, ženklintas CE (pagal medicinos prietaisų direktyvą)."]
["19.1.11.","Pateikti lipnias  laminuotas etiketes darbinio tirpalo ženklinimui.",null,null,null,null,null,"Pateiksime lipnias  laminuotas etiketes darbinio tirpalo ženklinimui."]
["19.1.12.","Pateikti priemones dozavimui (dozavimo pompas ar kt.) palengvinančias darbinio tirpalo gaminimą.",null,null,null,null,null,"Pateiksime priemones dozavimui (dozavimo pompas ar kt.) palengvinančias darbinio tirpalo gaminimą. Psl.Nr. 24-27; 132-142"]
["19.1.13.","Pateikti priemonės aprašymą (katalogą) originalo kalba, priemonės naudojimo instrukciją (lietuvių k.), atitinkamai priemonės biocido autorizacijos liudijimą ir/ar atitikties medicinos prietaisų direktyvai 93/42 EEB deklaracijas (originalo k. ir vertimą į lietuvių k.), saugos duomenų lapus (lietuvių k.)."]
[null,null,null,null,"Suma be PVM",{"$f":"IF((COUNT(D73:D86)<>COUNT(F73:F86)),\"\", SUM(F73:F86))","v":2450},{"$f":"IF((COUNT(D73:D86)<>COUNT(F73:F86)),\"Neužpildytos visų objektų kainos\", \"\")","v":""}]
[null,null,null,null,"PVM suma",122.5]
[null,null,null,null,"Suma su PVM",{"$f":"IF(ISBLANK(F88), \"\", SUM(F87:F88))","v":2572.5},"Dalies biudžetas su PVM: 3599,75 Eur"]
[]
[]
[]
[]
[]
["22. DALIS","CHEMINIAI STERILIZACIJOS PROCESO INDIKATORIAI"]
[]
["Tiekėjo pasiūlymas:"]
["Nr.","Pavadinimas","Mato vienetas","Kiekis","Vieneto įkainis be PVM, Eur","Suma be PVM, Eur","Siūlomos prekės modelis, pavadinimas, gamintojas","Tiekėjo siūlomi parametrai ir parametrą pagrindžiančio dokumento puslapis"]
["22.","Cheminiai sterilizacijos proceso indikatoriai"]
["22.1.","Išorinis indikatorius dokumentacijai (garais)","vnt.",603000,8.0000000000000002E-3,{"$f":"IF(ISBLANK(E100),\"\", PRODUCT(D100,E100))","v":4824},"Doku-L-Label ECO chem.indikat. (750vnt),            Gke- GmbH, Vokietija"]
["22.1.1.","Lipni dviguba etiketė - cheminis išorinis indikatorius klijuojamas ant sterilizuojamų paketų paviršių;",null,null,null,null,null,"Lipni dviguba etiketė - cheminis išorinis indikatorius klijuojamas ant sterilizuojamų paketų paviršių;"]
["22.1.2.","Skirtas visų tipų sterilizuotoms pakuotėms atpažinti, privalomai informacijai, įklijuoti į dokumentus.",null,null,null,null,null,"Skirtas visų tipų sterilizuotoms pakuotėms atpažinti, privalomai informacijai, įklijuoti į dokumentus."]
["22.1.3.","Turi tvirtai prilipti prie paketo,  neatsiklijuoti nuo paketo sterilizacijos metu ir po jo.",null,null,null,null,null,"Tvirtai prilimpa prie paketo,  neatsiklijuoja nuo paketo sterilizacijos metu ir po jo."]
["22.1.4.","Ant cheminio indikatoriaus turi būti pakankamai vietos reikiamai informacijai užrašyti (ne mažiau 3 eilučių, 36 simbolių).",null,null,null,null,null,"Ant cheminio indikatoriaus yra pakankamai vietos reikiamai informacijai užrašyti (3 eilučių, 36 simbolių)."]
["22.1.5.","Sterilizacijos būdas – vandens garais.",null,null,null,null,null,"Sterilizacijos būdas – vandens garais."]
["22.1.6.","Turi atitikti LST EN ISO 11140-1 1 tipo reikalavimus (pateikti patvirtinančius dokumentus).",null,null,null,null,null,"Atitinka LST EN ISO 11140-1 1 tipo reikalavimus."]
["22.1.7.","Indikatorius turi būti pritaikytas įklijuoti į įstaigoje naudojamus dokumentus.",null,null,null,null,null,"Indikatorius turi būti pritaikytas įklijuoti į įstaigoje naudojamus dokumentus. Psl.Nr. 143-146; 147-148"]
["22.2.","Rašalo kasetė rankiniam spausdintuvui","vnt.",30,5,{"$f":"IF(ISBLANK(E108),\"\", PRODUCT(D108,E108))","v":150},"Rašalo kasetės pakeitimui,                               Gke- GmbH, Vokietija"]
["22.2.1.","Tinkanti įstaigos turimiems rankiniams spausdintuvams (arba spausdintuvus pateikti panaudai)",null,null,null,null,null,"Tinkanti įstaigos turimiems rankiniams spausdintuvams."]
["22.2.2.","Pramoninės gamybos.",null,null,null,null,null,"Pramoninės gamybos."]
["22.2.3.","Rašalas skirtas sterilizacijai vandens garais ir FO.",null,null,null,null,null,"Rašalas skirtas sterilizacijai vandens garais ir FO."]
["22.2.4.","Spalva – juoda, po sterilizacijos neišblunka, išlieka stabili.",null,null,null,null,null,"Spalva – juoda, po sterilizacijos neišblunka, išlieka stabili."]
["22.2.5.","Rašalas supakuotas į sandarią pakuotę, apsaugančią nuo išorės veiksnių poveikio",null,null,null,null,null,"Rašalas supakuotas į sandarią pakuotę, apsaugančią nuo išorės veiksnių poveikio"]
["22.2.6.","Galiojimo terminas – ne mažiau 24  mėn.",null,null,null,null,null,"Galiojimo terminas –  24  mėn."]
["22.2.7.","Pakuotėje – 1 vnt.",null,null,null,null,null,"Pakuotėje – 1 vnt., Psl.Nr. 147-148"]
["22.3.","Antros klasės cheminis indikatorius skirtas naudoti su specialiam kroviniui patvirtintu proceso išbandymo prietaisu (vandens garams)","vnt.",16000,0.7,{"$f":"IF(ISBLANK(E116),\"\", PRODUCT(D116,E116))","v":11200},"BMS indikat. (garais, C-S-PM-SV1) 211-255,          Gke- GmbH, Vokietija"]
["22.3.1.","Pritaikytas specifinių įstaigos mišrių krovinių (kompleksinių, mikroinvazinių, ypač sudėtingų tuščiavidurių, ilgesnių kaip 8 m ilgio medicinos prietaisų) sterilizacijos kontrolei.",null,null,null,null,null,"Pritaikytas specifinių įstaigos mišrių krovinių (kompleksinių, mikroinvazinių, ypač sudėtingų tuščiavidurių, ilgesnių kaip 8 m ilgio medicinos prietaisų) sterilizacijos kontrolei."]
["22.3.2.","Pateikti panaudai 10 vnt. krovinio išbandymo prietaisus, kurie  turi būti aiškiai identifikuojami - ant įtaiso arba ant įtaiso pakuotės turi būti įskaitomas gamintojo atliktas ženklinimas: pavadinimas, artikelio Nr., nuoroda į sterilizacijos būdą, gamintojo pavadinimas.",null,null,null,null,null,"Pateiksime panaudai 10 vnt. krovinio išbandymo prietaisus, kurie yra aiškiai identifikuojami - ant įtaiso yra įskaitomas gamintojo atliktas ženklinimas: pavadinimas, artikelio Nr., nuoroda į sterilizacijos būdą, gamintojo pavadinimas."]
["22.3.3.","Prietaisas turi būti atsparus sterilizacijai garais, atlaikyti ne mažiau kaip  250 sterilizacijos sočiaisiais garais ciklų.",null,null,null,null,null,"Prietaisas atsparus sterilizacijai garais, atlaiko 10 000 sterilizacijos sočiaisiais garais ciklų."]
["22.3.4.","Tas pats indikatorius turi būti skirtas sterilizacijos procesams 134°C- 3,5 min. ir 121° C - 15 min.",null,null,null,null,null,"Tas pats indikatorius skirtas sterilizacijos procesams 134°C- 3,5 min. ir 121° C - 15 min."]
["22.3.5.","Indikatorinė  juostelė turi būti aiškiai identifikuojama - turi būti įskaitomas gamintojo ženklinimas (pavadinimas, artikelio Nr., nuoroda į sterilizacijos būdą, atitiktis EN ISO 11140-1 2 tipas, spalvos pasikeitimas, gamybinės partijos numeris).",null,null,null,null,null,"Indikatorinė  juostelė aiškiai identifikuojama – yra įskaitomas gamintojo ženklinimas (pavadinimas, artikelio Nr., nuoroda į sterilizacijos būdą, atitiktis EN ISO 11140-1 2 tipas, spalvos pasikeitimas, gamybinės partijos numeris)."]
["22.3.6.","Indikatorinė juostelė turi būti padengta apsauginiu sluoksniu, po sterilizacijos pasikeitusi indikatorinė spalva turi išlikti stabili ne trumpiau kaip 3 metus.",null,null,null,null,null,"Indikatorinė juostelė turi būti padengta apsauginiu sluoksniu, po sterilizacijos pasikeitusi indikatorinė spalva išlieka stabili ne trumpiau kaip 3 metus."]
["22.3.7.","Indikatorinės juostelės forma - lipni etiketė, pritaikyta  klijuoti į įstaigoje naudojamus ir patvirtintus krovinio registracijos kortelių žurnalus nenaudojant klijų.",null,null,null,null,null,"Indikatorinės juostelės forma - lipni etiketė, pritaikyta  klijuoti į įstaigoje naudojamus ir patvirtintus krovinio registracijos kortelių žurnalus nenaudojant klijų."]
["22.3.8.","Pateikti atitikties dokumentus EN ISO 11140-1 2 tipas.",null,null,null,null,null,"Pateikti atitikties dokumentus EN ISO 11140-1 2 tipas. Psl.Nr. 149-157"]
[null,null,null,null,"Suma be PVM",{"$f":"IF((COUNT(D100:D124)<>COUNT(F100:F124)),\"\", SUM(F100:F124))","v":16174},{"$f":"IF((COUNT(D100:D124)<>COUNT(F100:F124)),\"Neužpildytos visų objektų kainos\", \"\")","v":""}]
[null,null,null,null,"PVM suma",3396.54]
[null,null,null,null,"Suma su PVM",{"$f":"IF(ISBLANK(F126), \"\", SUM(F125:F126))","v":19570.54},"Dalies biudžetas su PVM: 41248,9 Eur"]
[]
[]
[]
["23. DALIS","CHEMINIAI STERILIZACIJOS PROCESO INDIKATORIAI (STERILIZACIJAI FORMALDEHIDO GARAI)"]
[]
["Tiekėjo pasiūlymas:"]
["Nr.","Pavadinimas","Mato vienetas","Kiekis","Vieneto įkainis be PVM, Eur","Suma be PVM, Eur","Siūlomos prekės modelis, pavadinimas, gamintojas","Tiekėjo siūlomi parametrai ir parametrą pagrindžiančio dokumento puslapis"]
["23.","Cheminiai sterilizacijos proceso indikatoriai (sterilizacijai formaldehido garai)"]
["23.1.","Cheminiai sterilizacijos proceso indikatoriai sterilizacijai formaldehido garais","vnt.",3750,0.02,{"$f":"IF(ISBLANK(E136),\"\", PRODUCT(D136,E136))","v":75},"C-F-L-1-DA-Y indikatorius (Doku-F-Label) chem.indik. (750vnt)                                                  Gke- GmbH, Vokietija"]
["23.1.1.","Išorinis indikatorius dokumentacijai (FO).",null,null,null,null,null,"Išorinis indikatorius dokumentacijai (FO)."]
["23.1.2.","Cheminis išorinis indikatorius klijuojamas ant sterilizuojamų paketų paviršių.",null,null,null,null,null,"Cheminis išorinis indikatorius klijuojamas ant sterilizuojamų paketų paviršių."]
["23.1.3.","Skirtas visų tipų sterilizuotoms pakuotėms atpažinti, užrašyti privalomai informacijai bei  įklijuoti į dokumentus.",null,null,null,null,null,"Skirtas visų tipų sterilizuotoms pakuotėms atpažinti, užrašyti privalomai informacijai bei  įklijuoti į dokumentus."]
["23.1.4.","Turi tvirtai prilipti prie paketo,  neatsiklijuoti nuo paketo prieš ir po sterilizacijos.",null,null,null,null,null,"Tvirtai prilipo prie paketo,  neatsiklijuoja nuo paketo prieš ir po sterilizacijos."]
["23.1.5.","Ant cheminio indikatoriaus turi būti pakankamai vietos reikiamai informacijai užrašyti (ne mažiau 3 eilučių, 36 simbolių).",null,null,null,null,null,"Ant cheminio indikatoriaus yra pakankamai vietos reikiamai informacijai užrašyti (3 eilučių, 36 simbolių)."]
["23.1.6.","Turi atitikti LST EN ISO 11140-1 1 tipo reikalavimus (pateikti patvirtinančius dokumentus).",null,null,null,null,null,"Atitinka LST EN ISO 11140-1 1 tipo reikalavimus. Psl. Nr. 143-146; 147-148"]
["23.2.","Antros klasės cheminis indikatorius skirtas naudoti su specialiam kroviniui patvirtintu proceso išbandymo prietaisu (FO)","vnt.",260,0.8,{"$f":"IF(ISBLANK(E143),\"\", PRODUCT(D143,E143))","v":208},"BMS indikat.(FO, C-F-PM) art.no. 213-203, 213-202,                                                                                Gke- GmbH, Vokietija"]
["23.2.1.","Pritaikytas specifiniams įstaigos mišriems kroviniams (kompleksinių, mikroinvazinių, ypač sudėtingų tuščiavidurių (ilgesnių kaip 8 m ilgio) medicinos prietaisų) kontroliuoti arba pateikti 5 lygiaverčius prietaisus;",null,null,null,null,null,"Pritaikytas specifiniams įstaigos mišriems kroviniams (kompleksinių, mikroinvazinių, ypač sudėtingų tuščiavidurių (ilgesnių kaip 8 m ilgio) medicinos prietaisų) kontroliuoti;"]
["23.2.2.","Krovinio išbandymo įtaisas turi būti aiškiai identifikuojamas - ant įtaiso turi būti įskaitomas gamintojo atliktas ženklinimas: pavadinimas, artikelio Nr., nuoroda į sterilizacijos būdą, gamintojo pavadinimas;",null,null,null,null,null,"Krovinio išbandymo įtaisas aiškiai identifikuojamas - ant įtaiso yra įskaitomas gamintojo atliktas ženklinimas: pavadinimas, artikelio Nr., nuoroda į sterilizacijos būdą, gamintojo pavadinimas;"]
["23.2.3.","Prietaisas turi būti atsparus sterilizacijai garais, atlaikyti ne mažiau kaip  6000 sterilizacijos sočiaisiais garais ciklų).",null,null,null,null,null,"Prietaisas  atsparus sterilizacijai garais, atlaiko 10000 sterilizacijos sočiaisiais garais ciklų."]
["23.2.4.","Indikatorinė juostelė turi būti skirta sterilizacijai FO, aiškiai identifikuojama - turi būti įskaitomas gamintojo ženklinimas (pavadinimas, artikelio Nr., nuoroda į sterilizacijos būdą (FO), gamintojo pavadinimas, atitiktis EN ISO 11140-1 2 klasė, spalvos pasikeitimas, gamybinės partijos numeris);",null,null,null,null,null,"Indikatorinė juostelė skirta sterilizacijai FO, aiškiai identifikuojama - įskaitomas gamintojo ženklinimas (pavadinimas, artikelio Nr., nuoroda į sterilizacijos būdą (FO), gamintojo pavadinimas, atitiktis EN ISO 11140-1 2 klasė, spalvos pasikeitimas, gamybinės partijos numeris);"]
["23.2.5.","Indikatorinė juostelė turi būti padengta apsauginiu sluoksniu, po sterilizacijos pasikeitusi indikatorinė spalva turi išlikti stabili ne trumpiau kaip 5 metus;",null,null,null,null,null,"Indikatorinė juostelė padengta apsauginiu sluoksniu, po sterilizacijos pasikeitusi indikatorinė spalva išlieka stabili ne trumpiau kaip 5 metus;"]
["23.2.6.","Indikatorinės juostelės forma - lipni etiketė, pritaikytas klijuoti į įstaigoje naudojamus ir patvirtintus krovinio registracijos kortelių žurnalus nenaudojant klijų;",null,null,null,null,null,"Indikatorinės juostelės forma - lipni etiketė, pritaikytas klijuoti į įstaigoje naudojamus ir patvirtintus krovinio registracijos kortelių žurnalus nenaudojant klijų;"]
["23.2.7.","Pateikti atitikties dokumentus EN ISO 11140-1 2 klasė, EN 867-5;",null,null,null,null,null,"Pateikti atitikties dokumentai EN ISO 11140-1 2 klasė, EN 867-5;"]
["23.2.8.","Pateikti aiškų, įskaitomą A4 formato, laminuotą spalvos pasikeitimo etaloną su reikšmių paaiškinimais lietuvių kalba.",null,null,null,null,null,"Pateiksime aiškų, įskaitomą A4 formato, laminuotą spalvos pasikeitimo etaloną su reikšmių paaiškinimais lietuvių kalba. Psl.Nr. 149-155; 158"]
[null,null,null,null,"Suma be PVM",{"$f":"IF((COUNT(D136:D151)<>COUNT(F136:F151)),\"\", SUM(F136:F151))","v":283},{"$f":"IF((COUNT(D136:D151)<>COUNT(F136:F151)),\"Neužpildytos visų objektų kainos\", \"\")","v":""}]
[null,null,null,null,"PVM suma",59.43]
[null,null,null,null,"Suma su PVM",{"$f":"IF(ISBLANK(F153), \"\", SUM(F152:F153))","v":342.43},"Dalies biudžetas su PVM: 572,94 Eur"]
[]
[]
[]
["24. DALIS","CHEMINIAI INDIKATORIAI SKIRTI ORO PAŠALINIMO IŠ STERILIZATORIAUS DARBO KAMEROS IR GARŲ PRASISKVERBIMO KONTROLEI"]
[]
["Tiekėjo pasiūlymas:"]
["Nr.","Pavadinimas","Mato vienetas","Kiekis","Vieneto įkainis be PVM, Eur","Suma be PVM, Eur","Siūlomos prekės modelis, pavadinimas, gamintojas","Tiekėjo siūlomi parametrai ir parametrą pagrindžiančio dokumento puslapis"]
["24.","Cheminiai indikatoriai skirti oro pašalinimo iš sterilizatoriaus darbo kameros ir garų prasiskverbimo kontrolei"]
["24.1.","Cheminiai indikatoriai skirti oro pašalinimo iš sterilizatoriaus darbo kameros ir garų prasiskverbimo kontrolei","vnt.",2500,1.1000000000000001,{"$f":"IF(ISBLANK(E163),\"\", PRODUCT(D163,E163))","v":2750},"C-S-BDS-SV1 chem. indikatorius 211-115,                   Gke- GmbH, Vokietija"]
["24.1.1.","Cheminiai indikatoriai skirti oro pašalinimo iš sterilizatoriaus darbo kameros ir garų prasiskverbimo kontrolei.",null,null,null,null,null,"Cheminiai indikatoriai skirti oro pašalinimo iš sterilizatoriaus darbo kameros ir garų prasiskverbimo kontrolei."]
["24.1.2.","Pateikti 10 vnt. lygiaverčius Bowie&Dick imitacinius prietaisus panaudai.",null,null,null,null,null,"Pateiksime 10 vnt. Bowie&Dick imitacinius prietaisus panaudai."]
["24.1.3.","Prietaisas turi būti aiškiai identifikuojamas - ant įtaiso arba ant įtaiso pakuotės  turi būti įskaitomas gamintojo atliktas ženklinimas: pavadinimas, artikelio Nr.,  gamintojo pavadinimas; prietaisas turi būti atsparus sterilizacijai garais, atlaikyti ne mažiau kaip  250 ciklų.",null,null,null,null,null,"Prietaisas aiškiai identifikuojamas - ant įtaiso yra  įskaitomas gamintojo atliktas ženklinimas: pavadinimas, artikelio Nr.,  gamintojo pavadinimas; prietaisas  atsparus sterilizacijai garais, atlaiko 10000 ciklų."]
["24.1.4.","Indikatorius turi būti 2 tipo, juostelė turi būti ne mažiau 6 segmentų.",null,null,null,null,null,"Indikatorius turi būti 2 tipo, juostelė turi būti ne mažiau 6 segmentų."]
["24.1.5.","Turi atitikti LST EN 285, LST EN ISO 11140-1, LST EN ISO 11140-3 arba LST EN ISO 11140-4 ir LST EN 867-5 reikalavimus (pateikti tai patvirtinančius dokumentus).",null,null,null,null,null,"Atitinka LST EN 285, LST EN ISO 11140-1, LST EN ISO 11140-3 arba LST EN ISO 11140-4 ir LST EN 867-5 reikalavimus."]
["24.1.6.","Indikatorius ir prietaisas  turi sudaryti vieningą sistemą pagal EN ISO 11140-4 (pateikti tai patvirtinančius dokumentus);",null,null,null,null,null,"Indikatorius ir prietaisas  sudaro vieningą sistemą pagal EN ISO 11140-4;"]
["24.1.7.","Turi būti pateiktas indikatoriaus spalvos pasikeitimo etalonas su teigiamų ir neigiamų rezultatų paaiškinimais lietuvių kalba.",null,null,null,null,null,"Pateiktas indikatoriaus spalvos pasikeitimo etalonas su teigiamų ir neigiamų rezultatų paaiškinimais lietuvių kalba."]
["24.1.8.","Indikatorinė juostelė turi būti aiškiai identifikuojama - turi būti įskaitomas gamintojo ženklinimas (pavadinimas, artikelio Nr., nuoroda į sterilizacijos būdą, atitiktis EN ISO 11140-1 2 tipas, spalvos pasikeitimas, gamybinės partijos numeris).",null,null,null,null,null,"Indikatorinė juostelė aiškiai identifikuojama -  įskaitomas gamintojo ženklinimas (pavadinimas, artikelio Nr., nuoroda į sterilizacijos būdą, atitiktis EN ISO 11140-1 2 tipas, spalvos pasikeitimas, gamybinės partijos numeris)."]
["24.1.9.","Indikatorius turi būti apsaugotas nuo išblukimo, po sterilizacijos  turi išlaikyti spalvą ne trumpiau kaip 3 metus,  sterilizacinės registrus saugant įprastinėse sąlygose (pateikti tai įrodančius dokumentus-naudojimo instrukcijas ar pan.).",null,null,null,null,null,"Indikatorius apsaugotas nuo išblukimo, po sterilizacijos išlaiko ne  trumpiau kaip 3 metus,  sterilizacinės registrus saugant įprastinėse sąlygose."]
["24.1.10.","Pateikti aiškų, įskaitomą A4 formato, laminuotą spalvos pasikeitimo etaloną su reikšmių paaiškinimais lietuvių kalba.",null,null,null,null,null,"Pateiktas  aiškus, įskaitomas A4 formato, laminuotas spalvos pasikeitimo etalonas su reikšmių paaiškinimais lietuvių kalba."]
["24.1.11.","Minimalios pakuotės iki 50 vnt., ant minimalios pakuotės turi būti nurodyta indikatorių paskirtis, pavadinimas, identifikacinis kodas, partijos Nr.,  klasė ir atitikimas EN ISO 11140-1, EN ISO 11140-4 standartui.",null,null,null,null,null,"Minimalios pakuotės 10 vnt., ant minimalios pakuotės nurodyta indikatorių paskirtis, pavadinimas, identifikacinis kodas, partijos Nr.,  klasė ir atitikimas EN ISO 11140-1, EN ISO 11140-4 standartui. Psl.Nr. 159-167"]
[null,null,null,null,"Suma be PVM",{"$f":"IF((COUNT(D163:D174)<>COUNT(F163:F174)),\"\", SUM(F163:F174))","v":2750},{"$f":"IF((COUNT(D163:D174)<>COUNT(F163:F174)),\"Neužpildytos visų objektų kainos\", \"\")","v":""}]
[null,null,null,null,"PVM suma",577.5]
[null,null,null,null,"Suma su PVM",{"$f":"IF(ISBLANK(F176), \"\", SUM(F175:F176))","v":3327.5},"Dalies biudžetas su PVM: 4235 Eur"]
[]
[]
[]
[]
[]
[]
["30. DALIS","PRIEMONĖS SKIRTOS MEDICINOS PRIETAISŲ VALYMO IR DEZINFEKCIJOS PROCESO KONTROLEI AUOTOMATINIUOSE PLAUTUVUOSE"]
[]
["Tiekėjo pasiūlymas:"]
["Nr.","Pavadinimas","Mato vienetas","Kiekis","Vieneto įkainis be PVM, Eur","Suma be PVM, Eur","Siūlomos prekės modelis, pavadinimas, gamintojas","Tiekėjo siūlomi parametrai ir parametrą pagrindžiančio dokumento puslapis"]
["30.","Priemonės skirtos medicinos prietaisų valymo ir dezinfekcijos proceso kontrolei auotomatiniuose plautuvuose"]
["30.1.","Krovinio išbandymo įtaisas vienalyčių ir tuščiavidurių instrumentų įkrovoms (pateikiamas nemokamai panaudai)","vnt.",70,0,{"$f":"IF(ISBLANK(E189),\"\", PRODUCT(D189,E189))","v":0},"Valymo indikatoriaus laikiklis, Gke-GmbH Vokietija"]
["30.1.1.","Vienalytėms įkrovoms įtaisas segamas/tvirtinimas prie sietelio.",null,null,null,null,null,"Vienalytėms įkrovoms įtaisas segamas/tvirtinimas prie sietelio."]
["30.1.2.","Forma – rėmeliai atviri iš viršaus ir apačios.",null,null,null,null,null,"Forma – rėmeliai atviri iš viršaus ir apačios."]
["30.1.3.","Turi būti naudojamas kartu su medicinos prietaisų valymo kokybės indikatoriais.",null,null,null,null,null,"Naudojamas kartu su medicinos prietaisų valymo kokybės indikatoriais."]
["30.1.4.","Atsparus aukštai temperatūrai ir garams.",null,null,null,null,null,"Atsparus aukštai temperatūrai ir garams."]
["30.1.5.","Tinkamas naudoti ne mažiau kaip 5000 ciklų.",null,null,null,null,null,"Tinkamas naudoti ne mažiau kaip 5000 ciklų."]
["30.1.6.","Tuščiavidurių instrumentų įkrovoms įtaisas turi būti pagamintas iš saugios, atsparios aukštai temperatūrai ir garams medžiagos, daugkartinio naudojimo, tinkamas naudoti ne mažiau, kaip 1000 ciklų.",null,null,null,null,null,"Tuščiavidurių instrumentų įkrovoms įtaisas pagamintas iš saugios, atsparios aukštai temperatūrai ir garams medžiagos, daugkartinio naudojimo, tinkamas naudoti ne mažiau, kaip 1000 ciklų."]
["30.1.7.","Komplekte su Luer-Lock jungtimis.",null,null,null,null,null,"Komplekte su Luer-Lock jungtimis."]
["30.1.8.","Forma – indikatoriaus laikymo kapsulė su vamzdeliu, pajungiamu prie jungties.",null,null,null,null,null,"Forma – indikatoriaus laikymo kapsulė su vamzdeliu, pajungiamu prie jungties."]
["30.1.9.","Įtaisai duodami panaudai kartu su indikatoriais.",null,null,null,null,null,"Įtaisai duodami panaudai kartu su indikatoriais. Psl. Nr. 197-202"]
["30.2.","Indikatoriai medicinos prietaisų valymo kokybei nustatyti","vnt.",350,0.8,{"$f":"IF(ISBLANK(E199),\"\", PRODUCT(D199,E199))","v":280},"Valymo indikatorius Chemo L2C, Gke-GmbH, Vokietija"]
["30.2.1.","Turi būti skirti vienalyčių ir tuščiavidurių medicinos prietaisų plovimo kokybei nustatyti automatiniuose plautuvuose, naudojami kartu su krovinio išbandymo įtaisais.",null,null,null,null,null,"Skirti vienalyčių ir tuščiavidurių medicinos prietaisų plovimo kokybei nustatyti automatiniuose plautuvuose, naudojami kartu su krovinio išbandymo įtaisais."]
["30.2.2.","Testai turi tikti aukščiau nurodytiems krovinio išbandymo  įtaisams.",null,null,null,null,null,"Testai tinka  aukščiau nurodytiems krovinio išbandymo  įtaisams."]
["30.2.3.","Viena testo pusė – lipni.",null,null,null,null,null,"Viena testo pusė – lipni. Psl. Nr. 197-202"]
[null,null,null,null,"Suma be PVM",{"$f":"IF((COUNT(D189:D202)<>COUNT(F189:F202)),\"\", SUM(F189:F202))","v":280},{"$f":"IF((COUNT(D189:D202)<>COUNT(F189:F202)),\"Neužpildytos visų objektų kainos\", \"\")","v":""}]
[null,null,null,null,"PVM suma",58.8]
[null,null,null,null,"Suma su PVM",{"$f":"IF(ISBLANK(F204), \"\", SUM(F203:F204))","v":338.8},"Dalies biudžetas su PVM: 338,8 Eur"]
[]
[]
[]
[]
["33. DALIS","DAUGKARTINIO NAUDOJIMO APSAUGOS AŠTRIEMS INSTRUMENTAMS"]
[]
["Tiekėjo pasiūlymas:"]
["Nr.","Pavadinimas","Mato vienetas","Kiekis","Vieneto įkainis be PVM, Eur","Suma be PVM, Eur","Siūlomos prekės modelis, pavadinimas, gamintojas","Tiekėjo siūlomi parametrai ir parametrą pagrindžiančio dokumento puslapis"]
["33.","Daugkartinio naudojimo apsaugos aštriems instrumentams"]
["33.1.","Daugkartinio naudojimo apsaugos aštriems instrumentams 2 x 9 x 25 mm","vnt.",200,0.25,{"$f":"IF(ISBLANK(E215),\"\", PRODUCT(D215,E215))","v":50},"Apsaugos (1 vnt.) Kodas – 30000, Key Surgical GmbH, Vokietija"]
["33.1.1.","Skirtos pakuotei apsaugoti nuo pažeidimų.",null,null,null,null,null,"Skirtos pakuotei apsaugoti nuo pažeidimų."]
["33.1.2.","Pagamintos iš skaidraus silikono ar lygiavertės medžiagos, atsparaus  dezinfekcinėms medžiagoms ir plovikliams, skirtos sterilizacijai sočiaisiais vandens bei formaldehido garais.",null,null,null,null,null,"Pagamintos iš skaidraus silikono, atsparaus  dezinfekcinėms medžiagoms ir plovikliams, skirtos sterilizacijai sočiaisiais vandens bei formaldehido garais."]
["33.1.3.","Netrukdo sterilizacijos agentui prasiskverbti prie instrumentų dengiamų dalių.",null,null,null,null,null,"Netrukdo sterilizacijos agentui prasiskverbti prie instrumentų dengiamų dalių."]
["33.1.4.","Ženklintos CE (pagal MDD 93/42 EEB).",null,null,null,null,null,"Ženklintos CE (pagal MDD 93/42 EEB)."]
["33.1.5.","Apsaugos dedamos ant instrumentų, jų rinkinių.",null,null,null,null,null,"Apsaugos dedamos ant instrumentų, jų rinkinių. Psl. Nr. 203-208; 211"]
["33.2.","Daugkartinio naudojimo apsaugos aštriems instrumentams 1,6 x 19 mm","vnt.",100,0.59,{"$f":"IF(ISBLANK(E221),\"\", PRODUCT(D221,E221))","v":59},"Apsaugos (1 vnt.) Kodas – 01800, Key Surgical GmbH, Vokietija"]
["33.2.1.","Skirtos pakuotei apsaugoti nuo pažeidimų.",null,null,null,null,null,"Skirtos pakuotei apsaugoti nuo pažeidimų."]
["33.2.2.","Pagamintos iš skaidraus silikono, ar lygiavertės medžiagos atsparaus  dezinfekcinėms medžiagoms ir plovikliams, skirtos sterilizacijai sočiaisiais vandens bei formaldehido garais.",null,null,null,null,null,"Pagamintos iš skaidraus silikono, atsparaus  dezinfekcinėms medžiagoms ir plovikliams, skirtos sterilizacijai sočiaisiais vandens bei formaldehido garais."]
["33.2.3.","Netrukdo sterilizacijos agentui prasiskverbti prie instrumentų dengiamų dalių.",null,null,null,null,null,"Netrukdo sterilizacijos agentui prasiskverbti prie instrumentų dengiamų dalių."]
["33.2.4.","Ženklintos CE (pagal MDD 93/42 EEB).",null,null,null,null,null,"Ženklintos CE (pagal MDD 93/42 EEB)."]
["33.2.5.","Apsaugos dedamos ant instrumentų, jų rinkinių.",null,null,null,null,null,"Apsaugos dedamos ant instrumentų, jų rinkinių. Psl. Nr. 203-208; 212"]
["33.3.","Daugkartinio naudojimo apsaugos aštriems instrumentams 2 x 19 mm","vnt.",200,0.59,{"$f":"IF(ISBLANK(E227),\"\", PRODUCT(D227,E227))","v":118},"Apsaugos (1 vnt.) Kodas – 01801, Key Surgical GmbH, Vokietija"]
["33.3.1.","Skirtos pakuotei apsaugoti nuo pažeidimų.",null,null,null,null,null,"Skirtos pakuotei apsaugoti nuo pažeidimų."]
["33.3.2.","Pagamintos iš skaidraus silikono, ar lygiavertės medžiagos atsparaus  dezinfekcinėms medžiagoms ir plovikliams, skirtos sterilizacijai sočiaisiais vandens bei formaldehido garais.",null,null,null,null,null,"Pagamintos iš skaidraus silikono, atsparaus  dezinfekcinėms medžiagoms ir plovikliams, skirtos sterilizacijai sočiaisiais vandens bei formaldehido garais."]
["33.3.3.","Netrukdo sterilizacijos agentui prasiskverbti prie instrumentų dengiamų dalių.",null,null,null,null,null,"Netrukdo sterilizacijos agentui prasiskverbti prie instrumentų dengiamų dalių."]
["33.3.4.","Ženklintos CE (pagal MDD 93/42 EEB).",null,null,null,null,null,"Ženklintos CE (pagal MDD 93/42 EEB)."]
["33.3.5.","Apsaugos dedamos ant instrumentų, jų rinkinių.",null,null,null,null,null,"Apsaugos dedamos ant instrumentų, jų rinkinių. Psl. Nr. 203-208; 212"]
["33.4.","Daugkartinio naudojimo apsaugos aštriems instrumentams 2,8 x 19 mm","vnt.",200,0.59,{"$f":"IF(ISBLANK(E233),\"\", PRODUCT(D233,E233))","v":118},"Apsaugos (1 vnt.) Kodas – 01802, Key Surgical GmbH, Vokietija"]
["33.4.1.","Skirtos pakuotei apsaugoti nuo pažeidimų.",null,null,null,null,null,"Skirtos pakuotei apsaugoti nuo pažeidimų."]
["33.4.2.","Pagamintos iš skaidraus silikono,ar lygiavertės medžiagos atsparaus  dezinfekcinėms medžiagoms ir plovikliams, skirtos sterilizacijai sočiaisiais vandens bei formaldehido garais.",null,null,null,null,null,"Pagamintos iš skaidraus silikono, atsparaus  dezinfekcinėms medžiagoms ir plovikliams, skirtos sterilizacijai sočiaisiais vandens bei formaldehido garais."]
["33.4.3.","Netrukdo sterilizacijos agentui prasiskverbti prie instrumentų dengiamų dalių.",null,null,null,null,null,"Netrukdo sterilizacijos agentui prasiskverbti prie instrumentų dengiamų dalių."]
["33.4.4.","Ženklintos CE (pagal MDD 93/42 EEB).",null,null,null,null,null,"Ženklintos CE (pagal MDD 93/42 EEB)."]
["33.4.5.","Apsaugos dedamos ant instrumentų, jų rinkinių.",null,null,null,null,null,"Apsaugos dedamos ant instrumentų, jų rinkinių. Psl. Nr. 203-208; 212"]
["33.5.","Daugkartinio naudojimo apsaugos aštriems instrumentams 2 x 16 x 25 mm","vnt.",200,0.245,{"$f":"IF(ISBLANK(E239),\"\", PRODUCT(D239,E239))","v":49},"Apsaugos (1 vnt.) Kodas – 30016, Key Surgical GmbH, Vokietija"]
["33.5.1.","Skirtos pakuotei apsaugoti nuo pažeidimų.",null,null,null,null,null,"Skirtos pakuotei apsaugoti nuo pažeidimų."]
["33.5.2.","Pagamintos iš skaidraus silikono, ar lygiavertės medžiagos atsparaus  dezinfekcinėms medžiagoms ir plovikliams, skirtos sterilizacijai sočiaisiais vandens bei formaldehido garais.",null,null,null,null,null,"Pagamintos iš skaidraus silikono, atsparaus  dezinfekcinėms medžiagoms ir plovikliams, skirtos sterilizacijai sočiaisiais vandens bei formaldehido garais."]
["33.5.3.","Netrukdo sterilizacijos agentui prasiskverbti prie instrumentų dengiamų dalių.",null,null,null,null,null,"Netrukdo sterilizacijos agentui prasiskverbti prie instrumentų dengiamų dalių."]
["33.5.4.","Ženklintos CE (pagal MDD 93/42 EEB).",null,null,null,null,null,"Ženklintos CE (pagal MDD 93/42 EEB)."]
["33.5.5.","Apsaugos dedamos ant instrumentų, jų rinkinių.",null,null,null,null,null,"Apsaugos dedamos ant instrumentų, jų rinkinių. Psl. Nr. 203-208; 211"]
["33.6.","Daugkartinio naudojimo apsaugos aštriems instrumentams 3 x 25 x 25 mm","vnt.",200,0.245,{"$f":"IF(ISBLANK(E245),\"\", PRODUCT(D245,E245))","v":49},"Apsaugos (1 vnt.) Kodas – 30001, Key Surgical GmbH, Vokietija"]
["33.6.1.","Skirtos pakuotei apsaugoti nuo pažeidimų.",null,null,null,null,null,"Skirtos pakuotei apsaugoti nuo pažeidimų."]
["33.6.2.","Pagamintos iš skaidraus silikono, ar lygiavertės medžiagos atsparaus  dezinfekcinėms medžiagoms ir plovikliams, skirtos sterilizacijai sočiaisiais vandens bei formaldehido garais.",null,null,null,null,null,"Pagamintos iš skaidraus silikono, atsparaus  dezinfekcinėms medžiagoms ir plovikliams, skirtos sterilizacijai sočiaisiais vandens bei formaldehido garais."]
["33.6.3.","Netrukdo sterilizacijos agentui prasiskverbti prie instrumentų dengiamų dalių.",null,null,null,null,null,"Netrukdo sterilizacijos agentui prasiskverbti prie instrumentų dengiamų dalių."]
["33.6.4.","Ženklintos CE (pagal MDD 93/42 EEB).",null,null,null,null,null,"Ženklintos CE (pagal MDD 93/42 EEB)."]
["33.6.5.","Apsaugos dedamos ant instrumentų, jų rinkinių.",null,null,null,null,null,"Apsaugos dedamos ant instrumentų, jų rinkinių. Psl. Nr. 203-208; 211"]
[null,null,null,null,"Suma be PVM",{"$f":"IF((COUNT(D215:D250)<>COUNT(F215:F250)),\"\", SUM(F215:F250))","v":443},{"$f":"IF((COUNT(D215:D250)<>COUNT(F215:F250)),\"Neužpildytos visų objektų kainos\", \"\")","v":""}]
[null,null,null,null,"PVM suma",22.15]
[null,null,null,null,"Suma su PVM",{"$f":"IF(ISBLANK(F252), \"\", SUM(F251:F252))","v":465.15},"Dalies biudžetas su PVM: 465,85 Eur"]
[]
[]
[]
["34. DALIS","RAŠALO KASETĖ RANKINIAM SPAUSDINTUVUI"]
[]
["Tiekėjo pasiūlymas:"]
["Nr.","Pavadinimas","Mato vienetas","Kiekis","Vieneto įkainis be PVM, Eur","Suma be PVM, Eur","Siūlomos prekės modelis, pavadinimas, gamintojas","Tiekėjo siūlomi parametrai ir parametrą pagrindžiančio dokumento puslapis"]
["34.","Rašalo kasetė rankiniam spausdintuvui"]
["34.1.","Rašalo kasetė rankiniam spausdintuvui","vnt.",30,5,{"$f":"IF(ISBLANK(E262),\"\", PRODUCT(D262,E262))","v":150},"Rašalo kasetės pakeitimui, Gke-GmbH, Vokietija"]
["34.1.1.","Tinkanti įstaigos turimiems rankiniams spausdintuvams (arba spausdintuvus pateikti panaudai)",null,null,null,null,null,"Tinkanti įstaigos turimiems rankiniams spausdintuvams."]
["34.1.2.","Pramoninės gamybos.",null,null,null,null,null,"Pramoninės gamybos."]
["34.1.3.","Rašalas skirtas sterilizacijai vandens garais ir FO.",null,null,null,null,null,"Rašalas skirtas sterilizacijai vandens garais ir FO."]
["34.1.4.","Spalva – juoda, po sterilizacijos neišblunka, išlieka stabili.",null,null,null,null,null,"Spalva – juoda, po sterilizacijos neišblunka, išlieka stabili."]
["34.1.5.","Rašalas supakuotas į sandarią pakuotę, apsaugančią nuo išorės veiksnių poveikio",null,null,null,null,null,"Rašalas supakuotas į sandarią pakuotę, apsaugančią nuo išorės veiksnių poveikio"]
["34.1.6.","Galiojimo terminas – ne mažiau 24  mėn.",null,null,null,null,null,"Galiojimo terminas – 24  mėn."]
["34.1.7.","Pakuotėje – 1 vnt.",null,null,null,null,null,"Tinkanti įstaigos turimiems rankiniams spausdintuvams. Psl. Nr. 147-148"]
[null,null,null,null,"Suma be PVM",{"$f":"IF((COUNT(D262:D269)<>COUNT(F262:F269)),\"\", SUM(F262:F269))","v":150},{"$f":"IF((COUNT(D262:D269)<>COUNT(F262:F269)),\"Neužpildytos visų objektų kainos\", \"\")","v":""}]
[null,null,null,null,"PVM suma",31.5]
[null,null,null,null,"Suma su PVM",{"$f":"IF(ISBLANK(F271), \"\", SUM(F270:F271))","v":181.5},"Dalies biudžetas su PVM: 254,1 Eur"]
[]
[]
[]
[]
["39. DALIS","APSAUGINIAI DANGALAI KLAVIATŪROMS"]
[]
["Tiekėjo pasiūlymas:"]
["Nr.","Pavadinimas","Mato vienetas","Kiekis","Vieneto įkainis be PVM, Eur","Suma be PVM, Eur","Siūlomos prekės modelis, pavadinimas, gamintojas","Tiekėjo siūlomi parametrai ir parametrą pagrindžiančio dokumento puslapis"]
["39.","Apsauginiai dangalai klaviatūroms"]
["39.1.","Apsauginiai dangalai klaviatūroms","vnt.",292,7,{"$f":"IF(ISBLANK(E282),\"\", PRODUCT(D282,E282))","v":2044},"Apsauginis dangalas klaviatūroms, vnt, Baaske GmbH, Vokietija"]
["39.1.1.","Skirti klaviatūroms apsaugoti ir dengti: pagaminti iš skaidraus plastiko, kraštai turi būti sutvirtinti tampria guma.",null,null,null,null,null,"Skirti klaviatūroms apsaugoti ir dengti: pagaminti iš skaidraus plastiko, kraštai  sutvirtinti tampria guma."]
["39.1.2.","Tinkami drėgnam valymui ir dezinfekcijai.",null,null,null,null,null,"Tinkami drėgnam valymui ir dezinfekcijai."]
["39.1.3.","Atsparūs trinčiai, su galimybe naudoti iki 3 mėnesių.",null,null,null,null,null,"Atsparūs trinčiai, su galimybe naudoti iki 3 mėnesių."]
["39.1.4.","Pateikti įrodančius dokumentus, patvirtinančius jog apsauginiai dangalai klaviatūroms yra atsparūs trinčiai ir turi galimybę būti naudojami iki 3 mėn."]
["39.1.5.","Turi būti ženklinti CE ženklu (pagal medicinos prietaisų saugos technikos reglamentą).",null,null,null,null,null,"ženklinti CE ženklu (pagal medicinos prietaisų saugos technikos reglamentą)."]
["39.1.6.","Supakuoti po 1 vnt.",null,null,null,null,null,"Supakuoti po 1vnt., Psl. Nr. 220-221"]
[null,null,null,null,"Suma be PVM",{"$f":"IF((COUNT(D282:D288)<>COUNT(F282:F288)),\"\", SUM(F282:F288))","v":2044},{"$f":"IF((COUNT(D282:D288)<>COUNT(F282:F288)),\"Neužpildytos visų objektų kainos\", \"\")","v":""}]
[null,null,null,null,"PVM suma",429.24]
[null,null,null,null,"Suma su PVM",{"$f":"IF(ISBLANK(F290), \"\", SUM(F289:F290))","v":2473.2399999999998},"Dalies biudžetas su PVM: 2490,91 Eur"]
[]
[]
[]
[]
["41. DALIS","APSAUGINĖS PIRŠTINĖS DARBUI SU STERILIZATORIAIS"]
[]
["Tiekėjo pasiūlymas:"]
["Nr.","Pavadinimas","Mato vienetas","Kiekis","Vieneto įkainis be PVM, Eur","Suma be PVM, Eur","Siūlomos prekės modelis, pavadinimas, gamintojas","Tiekėjo siūlomi parametrai ir parametrą pagrindžiančio dokumento puslapis"]
["41.","Apsauginės pirštinės darbui su sterilizatoriais"]
["41.1.","Apsauginės pirštinės darbui su sterilizatoriais","vnt.",10,20,{"$f":"IF(ISBLANK(E301),\"\", PRODUCT(D301,E301))","v":200},"Karščiui atsparios pirštinės 9 dydis,                 Kodas-09223,  Key Surgical GmbH, Vokietija"]
["41.1.1.","Minkštos, lankščios, pralaidžios orui.",null,null,null,null,null,"Minkštos, lankščios, pralaidžios orui."]
["41.1.2.","Atsparios aukštoms temperatūroms.",null,null,null,null,null,"Atsparios aukštoms temperatūroms."]
["41.1.3.","Min. Ilgis 330 mm.",null,null,null,null,null,"Min. Ilgis 330 mm."]
["41.1.4.","Turi būti įvairių dydžių, pritaikytos skalbimui.",null,null,null,null,null,"Įvairių dydžių, pritaikytos skalbimui. Psl.Nr. 228-229"]
[null,null,null,null,"Suma be PVM",{"$f":"IF((COUNT(D301:D305)<>COUNT(F301:F305)),\"\", SUM(F301:F305))","v":200},{"$f":"IF((COUNT(D301:D305)<>COUNT(F301:F305)),\"Neužpildytos visų objektų kainos\", \"\")","v":""}]
[null,null,null,null,"PVM suma",42]
[null,null,null,null,"Suma su PVM",{"$f":"IF(ISBLANK(F307), \"\", SUM(F306:F307))","v":242},"Dalies biudžetas su PVM: 266,2 Eur"]
[]
[]
[]
[]
[]
[]
["43. DALIS","PRIEMONĖS KREPŠIALIAMS IR INSTRUMENTAMS ŽYMĖTI"]
[]
["Tiekėjo pasiūlymas:"]
["Nr.","Pavadinimas","Mato vienetas","Kiekis","Vieneto įkainis be PVM, Eur","Suma be PVM, Eur","Siūlomos prekės modelis, pavadinimas, gamintojas","Tiekėjo siūlomi parametrai ir parametrą pagrindžiančio dokumento puslapis"]
["43.","Priemonės krepšialiams ir instrumentams žymėti"]
["43.1.","Plokštelės krepšelių žymėjimui","vnt.",700,2,{"$f":"IF(ISBLANK(E320),\"\", PRODUCT(D320,E320))","v":1400},"Žymėjimo plokštelė (spalvotos) 90x50 mm,          Key Surgical GmbH, Vokietija  "]
["43.1.1.","Sukomplektuotos su silikoninėmis ar lygiavertės medžiagos kniedėmis",null,null,null,null,null,"Sukomplektuotos su silikoninėmis  kniedėmis"]
["43.1.2.","Matmenys 90 mm x 55 mm (+- 5 mm)",null,null,null,null,null,"Matmenys 90 mm x 50 mm "]
["43.1.3.","Plastikinės įvairių spalvų plokštelės, skirtos naudoti automatinėse plovimo mašinose, krepšelių ženklinimui (identifikavimui).",null,null,null,null,null,"Plastikinės įvairių spalvų plokštelės, skirtos naudoti automatinėse plovimo mašinose, krepšelių ženklinimui (identifikavimui)."]
["43.1.4.","Turi būti atsparios aukštai temperatūrai ir ploviklių poveikiui.",null,null,null,null,null,"Atsparios aukštai temperatūrai ir ploviklių poveikiui."]
["43.1.5.","Įvairių spalvų",null,null,null,null,null,"Įvairių spalvų. Psl. Nr.230-231"]
["43.2.","Dirželiai instrumentams įvairių ilgių","vnt.",100,1.2,{"$f":"IF(ISBLANK(E326),\"\", PRODUCT(D326,E326))","v":120},"Žymėjimo juostelė (60mm, 110mm, 210mm) vnt          Key Surgical GmbH, Vokietija  "]
["43.2.1.","Įvairių ilgių (60 mm, 110 mm, 210 mm) (paklaida +- 3 mm)",null,null,null,null,null,"Įvairių ilgių (60mm, 110mm, 210mm). Psl. Nr.232-233"]
["43.3.","Žymėjimo juostelės instrumentams  žymėti","vnt.",50,1.2,{"$f":"IF(ISBLANK(E328),\"\", PRODUCT(D328,E328))","v":60},"Žymėjimo juostelė, vnt                                          Key Surgical GmbH, Vokietija  "]
["43.3.1.","Silikoninės ar lygiavertės medžiagos juostelės medicininių instrumentų identifikavimui ar/arba surišimui.",null,null,null,null,null,"Silikoninės medžiagos juostelės medicininių instrumentų identifikavimui ar/arba surišimui."]
["43.3.2.","Atsparios aukštai temperatūrai, sterilizuojant sočiaisiais vandens garais iki 134 °C.",null,null,null,null,null,"Atsparios aukštai temperatūrai, sterilizuojant sočiaisiais vandens garais iki 134 °C."]
["43.3.3.","Atsparios cheminių medžiagų poveikiui, plaunant automatinėse plovimo-dezinfekcijos mašinose.",null,null,null,null,null,"Atsparios cheminių medžiagų poveikiui, plaunant automatinėse plovimo-dezinfekcijos mašinose."]
["43.3.4.","Įvairių spalvų.",null,null,null,null,null,"Įvairių spalvų. Psl. Nr. 232-233"]
[null,null,null,null,"Suma be PVM",{"$f":"IF((COUNT(D320:D332)<>COUNT(F320:F332)),\"\", SUM(F320:F332))","v":1580},{"$f":"IF((COUNT(D320:D332)<>COUNT(F320:F332)),\"Neužpildytos visų objektų kainos\", \"\")","v":""}]
[null,null,null,null,"PVM suma",331.8]
[null,null,null,null,"Suma su PVM",{"$f":"IF(ISBLANK(F334), \"\", SUM(F333:F334))","v":1911.8},"Dalies biudžetas su PVM: 2353,45 Eur"]

{"sheet":"Subtiekėjai ir priedai","index":1,"n_rows":100,"n_cols":11,"rows_kept":100,"cut":false,"hidden":false,"merged":[[52,0,52,3],[52,4,52,9],[43,1,43,6],[43,7,43,9],[44,1,44,6],[44,7,44,9],[45,1,45,6],[45,7,45,9],[47,0,47,9],[50,0,50,3],[50,4,50,9],[38,1,38,6],[38,7,38,9],[39,1,39,6],[39,7,39,9],[40,1,40,6],[40,7,40,9],[41,1,41,6],[41,7,41,9],[42,1,42,6],[42,7,42,9],[30,0,30,9],[32,0,32,9],[34,1,34,6],[34,7,34,9],[35,1,35,6],[35,7,35,9],[36,1,36,6],[36,7,36,9],[37,1,37,6],[37,7,37,9],[26,0,26,1],[26,2,26,4],[26,5,26,7],[26,8,26,9],[27,0,27,1],[27,2,27,4],[27,5,27,7],[27,8,27,9],[28,0,28,1],[28,2,28,4],[28,5,28,7],[28,8,28,9],[23,0,23,1],[23,2,23,4],[23,5,23,7],[23,8,23,9],[24,0,24,1],[24,2,24,4],[24,5,24,7],[24,8,24,9],[25,0,25,1],[25,2,25,4],[25,5,25,7],[25,8,25,9],[20,0,20,1],[20,2,20,4],[20,5,20,7],[20,8,20,9],[21,0,21,1],[21,2,21,4],[21,5,21,7],[21,8,21,9],[22,0,22,1],[22,2,22,4],[22,5,22,7],[22,8,22,9],[16,0,16,10],[18,0,18,1],[18,2,18,4],[18,5,18,7],[18,8,18,9],[19,0,19,1],[19,2,19,4],[19,5,19,7],[19,8,19,9],[12,0,12,1],[12,2,12,4],[12,5,12,7],[12,8,12,9],[13,0,13,1],[13,2,13,4],[13,5,13,7],[13,8,13,9],[14,0,14,1],[14,2,14,4],[14,5,14,7],[14,8,14,9],[9,0,9,1],[9,2,9,4],[9,5,9,7],[9,8,9,9],[10,0,10,1],[10,2,10,4],[10,5,10,7],[10,8,10,9],[11,0,11,1],[11,2,11,4],[11,5,11,7],[11,8,11,9],[6,0,6,1],[6,2,6,4],[6,5,6,7],[6,8,6,9],[7,0,7,1],[7,2,7,4],[7,5,7,7],[7,8,7,9],[8,0,8,1],[8,2,8,4],[8,5,8,7],[8,8,8,9],[1,0,2,10],[4,0,4,1],[4,2,4,4],[4,5,4,7],[4,8,4,9],[5,0,5,1],[5,2,5,4],[5,5,5,7],[5,8,5,9]]}
[]
["Ūkio subjektai (įskaitant kvazisubtiekėjus - fiziniai asmenys, kuriuos ketinama įdarbinti pirkimo laimėjimo atveju), kurių pajėgumais tiekėjas remiasi, kad atitiktų keliamus kvalifikacijos reikalavimus:"]
[]
[]
["Pavadinimas*",null,"Kodas, adresas",null,null,"Perduodama veikla",null,null,"Perduodamos veiklos dalis nuo visos pirkimo sutarties (Eur arba %)",null,"Kval. Reikalavimo Nr."]
[]
[]
[]
[]
[]
[]
[]
[]
[]
[]
[]
["Subtiekėjams / subteikėjams / subrangovams numatomos perduoti veiklos (privaloma nurodyti) ir šių ūkio subjektų pavadinimai (jei žinomi):"]
[]
["Pavadinimas",null,"Kodas, adresas",null,null,"Perduodama veikla*",null,null,"Perduodamos veiklos dalis nuo visos pirkimo sutarties (Eur arba %)"]
[]
[]
[]
[]
[]
[]
[]
[]
[]
[]
[]
["* Pildyti tuomet, jei pirkimo sutarties vykdymui bus pasitelkti subtiekėjai. Jeigu tiekėjas nenurodo subtiekėjų, laikoma, kad vykdant pirkimo sutartį jų nebus pasitelkiama."]
[]
["Kartu su pasiūlymu pateikiami šie dokumentai:"]
[]
["Nr.","Dokumento  pavadinimas",null,null,null,null,null,"Dokumentas yra konfidencialus? Taip/Ne"]
[1,"Jungtinės veiklos kopija (jei taikoma)"]
[2,"Subtiekimo sutartis, ketinimų protokolas, preliminarios sutartys ar kiti dokumentai, patvirtinantys, kad laimėjus pirkimą tiekėjui bus prieinami kitų ūkio subjektų ištekliai (jei pasitelkiami kvalifikacijos atitikimui)"]
[3,"Pasiūlymo atitikimą pirkimo sąlygų techninei specifikacijai pagrindžiantys dokumentai"]
[]
[]
[]
[]
[]
[]
[]
[]
[]
["Pasiūlyme nurodyta Prekės kaina, išskyrus jos sudedamąsias dalis, subtiekėjai, taip pat kita informacija, kuri teisės aktų nustatyta tvarka turi būti skelbiama arba kitokiu būdu viešai prieinama visuomenei, nėra laikoma konfidencialia informacija. Konfidencialią informaciją sudaro, visų pirma, komercinė (gamybinė) paslaptis ir konfidencialieji pasiūlymų aspektai. Informacija, kurią viešai skelbti įpareigoja Lietuvos Respublikos įstatymai, negali būti tiekėjo nurodoma kaip konfidenciali, todėl, tiekėjui nurodžius tokią informaciją kaip konfidencialią, perkančioji organizacija turi teisę ją skelbti. Jei tiekėjas nenurodo konfidencialios informacijos, laikoma, kad konfidencialios informacijos tiekėjo pasiūlyme nėra. Vadovaujantis Informacijos viešinimo Centrinėje viešųjų pirkimų informacinėje sistemoje tvarkos aprašu, patvirtintu Viešųjų pirkimų tarnybos direktoriaus 2017 m. birželio 19 d. įsakymu Nr. 1S-91 „Dėl Informacijos viešinimo Centrinėje viešųjų pirkimų informacinėje sistemoje tvarkos aprašo patvirtinimo“, perkančioji organizacija laimėjusio dalyvio pasiūlymą, išskyrus informaciją, kurią tiekėjas nurodė kaip konfidencialią, paskelbs CVP IS."]
[]
[]
["Tiekėjo arba jo įgalioto asmens pareigų pavadinimas:"]
[]
["Pasirašančio asmens vardas ir pavardė:"]
[]
[]
[]
[]
[]
[]
[]
[]
[]
[]
[]
[]
[]
[]
[]
[]
[]
[]
[]
[]
[]
[]
[]
[]
[]
[]
[]
[]
[]
[]
[]
[]
[]
[]
[]
[]
[]
[]
[]
[]
[]
[]
[]
[]
[]
[]
["5051 2020-12-28 17:34:41"]